[Event "Titled Tuesday Blitz March 07 Early 2023"]
[White "Sovetov, Oleksandr"]
[Black "Yuan, Qingyu"]
[WhiteFideId "34105786"]
[BlackFideId "8609772"]
[WhiteElo "2551"]
[BlackElo "2359"]
[Result "0-1"]
[Round "02"]
[TimeControl "180+2"]
[Date "2023.03.07"]
[WhiteClock "0:00:08"]
[BlackClock "0:00:25"]

1. Nf3 {[%clk 0:02:55]}  d5 {[%clk 0:02:59]} 2. e3 {[%clk 0:02:55]}  Nf6 {[%clk 0:03:00]} 3. c4 {[%clk 0:02:52]}  e6 {[%clk 0:03:00]} 4. b3 {[%clk 0:02:48]}  Be7 {[%clk 0:02:59]} 5. Bb2 {[%clk 0:02:48]}  O-O {[%clk 0:02:59]} 6. Nc3 {[%clk 0:02:46]}  dxc4 {[%clk 0:03:00]} 7. Bxc4 {[%clk 0:02:45]}  a6 {[%clk 0:03:00]} 8. O-O {[%clk 0:02:43]}  b5 {[%clk 0:03:00]} 9. Be2 {[%clk 0:02:44]}  Bb7 {[%clk 0:02:57]} 10. a4 {[%clk 0:02:43]}  b4 {[%clk 0:02:53]} 11. Nb1 {[%clk 0:02:42]}  Nbd7 {[%clk 0:02:52]} 12. a5 {[%clk 0:02:38]}  c5 {[%clk 0:02:35]} 13. d3 {[%clk 0:02:39]}  Rc8 {[%clk 0:02:32]} 14. Nbd2 {[%clk 0:02:39]}  Nd5 {[%clk 0:02:29]} 15. Nc4 {[%clk 0:02:32]}  Bf6 {[%clk 0:02:22]} 16. Nfe5 {[%clk 0:02:30]}  Nxe5 {[%clk 0:02:18]} 17. Nxe5 {[%clk 0:02:26]}  Qc7 {[%clk 0:02:08]} 18. Nc4 {[%clk 0:02:17]}  Nc3 {[%clk 0:02:00]} 19. Qc2 {[%clk 0:02:12]}  Rcd8 {[%clk 0:01:58]} 20. e4 {[%clk 0:02:09]}  Bd4 {[%clk 0:01:55]} 21. Kh1 {[%clk 0:02:01]}  f5 {[%clk 0:01:49]} 22. Bxc3 {[%clk 0:01:52]}  bxc3 {[%clk 0:01:32]} 23. f4 {[%clk 0:01:48]}  fxe4 {[%clk 0:01:30]} 24. Ne5 {[%clk 0:01:37]}  Bxe5 {[%clk 0:01:22]} 25. fxe5 {[%clk 0:01:36]}  Qxe5 {[%clk 0:01:22]} 26. Rae1 {[%clk 0:01:29]}  Qd4 {[%clk 0:01:15]} 27. Rd1 {[%clk 0:01:23]}  e3 {[%clk 0:01:10]} 28. Rc1 {[%clk 0:01:19]}  Rxf1+ {[%clk 0:01:01]} 29. Bxf1 {[%clk 0:01:19]}  Rf8 {[%clk 0:01:01]} 30. Qe2 {[%clk 0:00:49]}  g6 {[%clk 0:00:50]} 31. Qe1 {[%clk 0:00:17]}  Rf2 {[%clk 0:00:42]} 32. Kg1 {[%clk 0:00:17]}  c2 {[%clk 0:00:35]} 33. Ra1 {[%clk 0:00:10]}  Qd5 {[%clk 0:00:28]} 34. Qxe3 {[%clk 0:00:08]}  Rxg2+ {[%clk 0:00:25]} 0-1


[Site "https://www.chess.com"]

[Event "Titled Tuesday Blitz March 07 Early 2023"]
[White "Hayrapetyan, Hovik"]
[Black "Richter, Paul"]
[WhiteFideId "13302639"]
[BlackFideId "2046350"]
[WhiteElo "2348"]
[BlackElo "2547"]
[Result "1-0"]
[Round "02"]
[TimeControl "180+2"]
[Date "2023.03.07"]
[WhiteClock "0:00:09"]
[BlackClock "0:00:01"]

1. d4 {[%clk 0:03:00]}  Nf6 {[%clk 0:02:58]} 2. c4 {[%clk 0:03:01]}  g6 {[%clk 0:02:58]} 3. Nc3 {[%clk 0:03:01]}  Bg7 {[%clk 0:02:58]} 4. Nf3 {[%clk 0:03:00]}  d6 {[%clk 0:02:58]} 5. g3 {[%clk 0:02:59]}  O-O {[%clk 0:02:57]} 6. Bg2 {[%clk 0:03:00]}  Nbd7 {[%clk 0:02:57]} 7. O-O {[%clk 0:02:59]}  e5 {[%clk 0:02:57]} 8. e4 {[%clk 0:03:00]}  exd4 {[%clk 0:02:57]} 9. Nxd4 {[%clk 0:03:00]}  Re8 {[%clk 0:02:57]} 10. Re1 {[%clk 0:02:59]}  a6 {[%clk 0:02:58]} 11. Qc2 {[%clk 0:02:56]}  Rb8 {[%clk 0:02:58]} 12. h3 {[%clk 0:02:53]}  Ne5 {[%clk 0:02:57]} 13. b3 {[%clk 0:02:51]}  c5 {[%clk 0:02:57]} 14. Nde2 {[%clk 0:02:47]}  b5 {[%clk 0:02:57]} 15. cxb5 {[%clk 0:02:45]}  axb5 {[%clk 0:02:58]} 16. Bb2 {[%clk 0:02:42]}  b4 {[%clk 0:02:55]} 17. Na4 {[%clk 0:02:39]}  Qc7 {[%clk 0:02:41]} 18. Rad1 {[%clk 0:02:37]}  Bb7 {[%clk 0:02:34]} 19. Nf4 {[%clk 0:02:26]}  Ra8 {[%clk 0:01:53]} 20. Bxe5 {[%clk 0:02:08]}  Rxe5 {[%clk 0:01:54]} 21. Nd3 {[%clk 0:02:08]}  Rxe4 {[%clk 0:00:56]} 22. Bxe4 {[%clk 0:02:07]}  Bxe4 {[%clk 0:00:53]} 23. Rxe4 {[%clk 0:02:05]}  Nxe4 {[%clk 0:00:54]} 24. Nxb4 {[%clk 0:02:05]}  Ng5 {[%clk 0:00:27]} 25. Nd5 {[%clk 0:02:01]}  Qd8 {[%clk 0:00:24]} 26. h4 {[%clk 0:01:30]}  Nf3+ {[%clk 0:00:20]} 27. Kg2 {[%clk 0:01:29]}  Nd4 {[%clk 0:00:20]} 28. Qe4 {[%clk 0:01:28]}  Rb8 {[%clk 0:00:18]} 29. Re1 {[%clk 0:01:22]}  h5 {[%clk 0:00:18]} 30. Nac3 {[%clk 0:00:59]}  Nf5 {[%clk 0:00:18]} 31. Ne2 {[%clk 0:00:54]}  Ra8 {[%clk 0:00:16]} 32. a4 {[%clk 0:00:34]}  Rb8 {[%clk 0:00:15]} 33. Rb1 {[%clk 0:00:27]}  Nd4 {[%clk 0:00:12]} 34. Nxd4 {[%clk 0:00:26]}  Bxd4 {[%clk 0:00:13]} 35. Ne7+ {[%clk 0:00:24]}  Kg7 {[%clk 0:00:12]} 36. Nc6 {[%clk 0:00:25]}  Qe8 {[%clk 0:00:11]} 37. Qxe8 {[%clk 0:00:23]}  Rxe8 {[%clk 0:00:12]} 38. a5 {[%clk 0:00:18]}  Rc8 {[%clk 0:00:10]} 39. Nxd4 {[%clk 0:00:17]}  cxd4 {[%clk 0:00:10]} 40. Kf3 {[%clk 0:00:14]}  Rc5 {[%clk 0:00:05]} 41. b4 {[%clk 0:00:14]}  Rc2 {[%clk 0:00:04]} 42. b5 {[%clk 0:00:13]}  d3 {[%clk 0:00:04]} 43. b6 {[%clk 0:00:13]}  d2 {[%clk 0:00:03]} 44. Rd1 {[%clk 0:00:10]}  Ra2 {[%clk 0:00:02]} 45. b7 {[%clk 0:00:09]}  Rb2 {[%clk 0:00:01]} 46. a6 {[%clk 0:00:10]}  Rb1 {[%clk 0:00:01]} 47. Rxb1 {[%clk 0:00:09]} 1-0


[Site "https://www.chess.com"]

[Event "Titled Tuesday Blitz March 07 Early 2023"]
[White "Khumalo, Keith"]
[Black "Pakleza, Zbigniew"]
[WhiteFideId "14319470"]
[BlackFideId "1119290"]
[WhiteElo "2056"]
[BlackElo "2410"]
[Result "0-1"]
[Round "02"]
[TimeControl "180+2"]
[Date "2023.03.07"]
[WhiteClock "0:01:02"]
[BlackClock "0:00:03"]

1. d4 {[%clk 0:03:00]}  d6 {[%clk 0:02:59]} 2. c4 {[%clk 0:03:00]}  e5 {[%clk 0:02:59]} 3. d5 {[%clk 0:03:00]}  f5 {[%clk 0:02:59]} 4. Nc3 {[%clk 0:03:00]}  Nf6 {[%clk 0:02:59]} 5. e4 {[%clk 0:03:01]}  fxe4 {[%clk 0:03:00]} 6. Nge2 {[%clk 0:03:01]}  Nbd7 {[%clk 0:03:00]} 7. Ng3 {[%clk 0:03:00]}  Nc5 {[%clk 0:03:01]} 8. Qc2 {[%clk 0:03:00]}  Nd3+ {[%clk 0:02:49]} 9. Bxd3 {[%clk 0:03:00]}  exd3 {[%clk 0:02:50]} 10. Qxd3 {[%clk 0:03:01]}  Be7 {[%clk 0:02:49]} 11. O-O {[%clk 0:03:01]}  O-O {[%clk 0:02:49]} 12. h3 {[%clk 0:02:53]}  a5 {[%clk 0:02:43]} 13. Be3 {[%clk 0:02:45]}  b6 {[%clk 0:02:41]} 14. Rae1 {[%clk 0:02:45]}  Bd7 {[%clk 0:02:30]} 15. f3 {[%clk 0:02:26]}  Be8 {[%clk 0:02:29]} 16. Qe2 {[%clk 0:02:14]}  Bg6 {[%clk 0:02:23]} 17. f4 {[%clk 0:02:15]}  exf4 {[%clk 0:02:06]} 18. Bxf4 {[%clk 0:02:16]}  Re8 {[%clk 0:02:06]} 19. Qf3 {[%clk 0:02:13]}  Qd7 {[%clk 0:01:56]} 20. Re6 {[%clk 0:02:11]}  Bf7 {[%clk 0:01:37]} 21. Re2 {[%clk 0:02:10]}  h6 {[%clk 0:01:20]} 22. Rfe1 {[%clk 0:02:10]}  Nh7 {[%clk 0:01:13]} 23. Nce4 {[%clk 0:02:05]}  Bh4 {[%clk 0:01:08]} 24. Bd2 {[%clk 0:02:00]}  Bg6 {[%clk 0:00:44]} 25. Rf1 {[%clk 0:02:00]}  Rf8 {[%clk 0:00:40]} 26. Qc3 {[%clk 0:01:57]}  Rae8 {[%clk 0:00:36]} 27. Rxf8+ {[%clk 0:01:56]}  Rxf8 {[%clk 0:00:37]} 28. Re3 {[%clk 0:01:50]}  Nf6 {[%clk 0:00:34]} 29. Nf2 {[%clk 0:01:43]}  Nh5 {[%clk 0:00:25]} 30. Nfh1 {[%clk 0:01:44]}  Bf6 {[%clk 0:00:20]} 31. Qb3 {[%clk 0:01:42]}  Bd4 {[%clk 0:00:20]} 32. Kh2 {[%clk 0:01:40]}  Bxe3 {[%clk 0:00:19]} 33. Qxe3 {[%clk 0:01:41]}  Qf7 {[%clk 0:00:14]} 34. Bc3 {[%clk 0:01:40]}  Nf4 {[%clk 0:00:06]} 35. a3 {[%clk 0:01:34]}  Re8 {[%clk 0:00:07]} 36. Qf3 {[%clk 0:01:33]}  Ne2 {[%clk 0:00:05]} 37. Qxf7+ {[%clk 0:01:10]}  Kxf7 {[%clk 0:00:06]} 38. Nxe2 {[%clk 0:01:09]}  Rxe2 {[%clk 0:00:07]} 39. Ng3 {[%clk 0:01:10]}  Rc2 {[%clk 0:00:07]} 40. Kg1 {[%clk 0:01:09]}  Bd3 {[%clk 0:00:06]} 41. h4 {[%clk 0:01:05]}  Bxc4 {[%clk 0:00:05]} 42. Nf5 {[%clk 0:01:05]}  Bxd5 {[%clk 0:00:04]} 43. Ne3 {[%clk 0:01:06]}  Rc1+ {[%clk 0:00:05]} 44. Kf2 {[%clk 0:01:06]}  Be6 {[%clk 0:00:06]} 45. g4 {[%clk 0:01:06]}  c5 {[%clk 0:00:04]} 46. g5 {[%clk 0:01:05]}  hxg5 {[%clk 0:00:04]} 47. hxg5 {[%clk 0:01:06]}  d5 {[%clk 0:00:05]} 48. Be5 {[%clk 0:01:07]}  d4 {[%clk 0:00:05]} 49. Ng2 {[%clk 0:01:08]}  Rc2+ {[%clk 0:00:05]} 50. Kg3 {[%clk 0:01:08]}  Rxb2 {[%clk 0:00:04]} 51. Nf4 {[%clk 0:01:08]}  g6 {[%clk 0:00:05]} 52. Bc7 {[%clk 0:01:06]}  a4 {[%clk 0:00:05]} 53. Kh4 {[%clk 0:01:03]}  b5 {[%clk 0:00:05]} 54. Nd3 {[%clk 0:01:03]}  Rb3 {[%clk 0:00:04]} 55. Nxc5 {[%clk 0:01:02]}  Rh3# {[%clk 0:00:03]} 0-1


[Site "https://www.chess.com"]

[Event "Titled Tuesday Blitz March 07 Early 2023"]
[White "polandchessplayer"]
[Black "Garv Gaur"]
[BlackFideId "45030839"]
[WhiteElo "2787"]
[BlackElo "2068"]
[Result "0-1"]
[Round "02"]
[TimeControl "180+2"]
[Date "2023.03.07"]
[WhiteClock "0:00:08"]
[BlackClock "0:00:07"]

1. c4 {[%clk 0:03:00]}  Nf6 {[%clk 0:02:56]} 2. Nf3 {[%clk 0:03:00]}  c5 {[%clk 0:02:55]} 3. g3 {[%clk 0:02:59]}  Nc6 {[%clk 0:02:55]} 4. Bg2 {[%clk 0:03:00]}  g6 {[%clk 0:02:54]} 5. O-O {[%clk 0:03:00]}  Bg7 {[%clk 0:02:54]} 6. Nc3 {[%clk 0:02:59]}  O-O {[%clk 0:02:54]} 7. d3 {[%clk 0:03:00]}  d6 {[%clk 0:02:42]} 8. a3 {[%clk 0:02:58]}  Bf5 {[%clk 0:02:38]} 9. Rb1 {[%clk 0:02:52]}  Nd7 {[%clk 0:02:28]} 10. Bd2 {[%clk 0:02:52]}  a5 {[%clk 0:02:26]} 11. h3 {[%clk 0:02:47]}  Nde5 {[%clk 0:02:20]} 12. Nxe5 {[%clk 0:02:40]}  Bxe5 {[%clk 0:02:21]} 13. Bh6 {[%clk 0:02:35]}  Bg7 {[%clk 0:02:20]} 14. Bxg7 {[%clk 0:02:35]}  Kxg7 {[%clk 0:02:21]} 15. e4 {[%clk 0:02:34]}  Bd7 {[%clk 0:02:20]} 16. Nb5 {[%clk 0:02:34]}  Nd4 {[%clk 0:02:19]} 17. Nxd4 {[%clk 0:02:34]}  cxd4 {[%clk 0:02:20]} 18. f4 {[%clk 0:02:31]}  e5 {[%clk 0:02:17]} 19. f5 {[%clk 0:02:29]}  f6 {[%clk 0:02:17]} 20. Qd2 {[%clk 0:02:26]}  a4 {[%clk 0:02:15]} 21. h4 {[%clk 0:02:19]}  Bc6 {[%clk 0:02:14]} 22. Bh3 {[%clk 0:02:18]}  g5 {[%clk 0:01:47]} 23. hxg5 {[%clk 0:02:16]}  fxg5 {[%clk 0:01:48]} 24. Rf2 {[%clk 0:01:44]}  Qf6 {[%clk 0:01:45]} 25. Bg4 {[%clk 0:01:39]}  Be8 {[%clk 0:01:41]} 26. Rh2 {[%clk 0:01:36]}  Rh8 {[%clk 0:01:31]} 27. Bh5 {[%clk 0:01:35]}  h6 {[%clk 0:01:30]} 28. Bxe8 {[%clk 0:01:31]}  Raxe8 {[%clk 0:01:31]} 29. Qb4 {[%clk 0:01:31]}  Re7 {[%clk 0:01:24]} 30. Qxa4 {[%clk 0:01:30]}  h5 {[%clk 0:01:24]} 31. Qd1 {[%clk 0:01:26]}  h4 {[%clk 0:01:22]} 32. g4 {[%clk 0:01:26]}  h3 {[%clk 0:01:14]} 33. Qf3 {[%clk 0:01:25]}  Qh6 {[%clk 0:01:09]} 34. Kf2 {[%clk 0:01:10]}  Kf6 {[%clk 0:01:09]} 35. Rbh1 {[%clk 0:01:10]}  Reh7 {[%clk 0:01:09]} 36. Qg3 {[%clk 0:01:05]}  Ke7 {[%clk 0:00:56]} 37. c5 {[%clk 0:01:04]}  Kf6 {[%clk 0:00:45]} 38. Rc1 {[%clk 0:00:57]}  Rc8 {[%clk 0:00:43]} 39. b4 {[%clk 0:00:50]}  dxc5 {[%clk 0:00:38]} 40. bxc5 {[%clk 0:00:51]}  Rcc7 {[%clk 0:00:24]} 41. Kg1 {[%clk 0:00:48]}  Rh8 {[%clk 0:00:23]} 42. Rb2 {[%clk 0:00:41]}  Qf8 {[%clk 0:00:06]} 43. Rbc2 {[%clk 0:00:18]}  Qa8 {[%clk 0:00:05]} 44. Kh1 {[%clk 0:00:16]}  Qxa3 {[%clk 0:00:05]} 45. c6 {[%clk 0:00:16]}  b6 {[%clk 0:00:04]} 46. Qf3 {[%clk 0:00:15]}  Qd6 {[%clk 0:00:03]} 47. Qe2 {[%clk 0:00:15]}  Rhc8 {[%clk 0:00:02]} 48. Qf3 {[%clk 0:00:12]}  Rxc6 {[%clk 0:00:02]} 49. Qxh3 {[%clk 0:00:10]}  Rxc2 {[%clk 0:00:03]} 50. Qh6+ {[%clk 0:00:04]}  Ke7 {[%clk 0:00:03]} 51. Qg7+ {[%clk 0:00:05]}  Kd8 {[%clk 0:00:03]} 52. Qf8+ {[%clk 0:00:05]}  Qxf8 {[%clk 0:00:03]} 53. Rxc2 {[%clk 0:00:06]}  Rxc2 {[%clk 0:00:03]} 54. Kg1 {[%clk 0:00:06]}  Qh6 {[%clk 0:00:04]} 55. Kf1 {[%clk 0:00:07]}  Qh2 {[%clk 0:00:05]} 56. Ke1 {[%clk 0:00:08]}  Qf2+ {[%clk 0:00:06]} 57. Kd1 {[%clk 0:00:08]}  Qe2# {[%clk 0:00:07]} 0-1


[Site "https://www.chess.com"]

[Event "Titled Tuesday Blitz March 07 Early 2023"]
[White "Fier, Alexandr"]
[Black "Derjabin, Ilja"]
[WhiteFideId "2107139"]
[BlackFideId "14104768"]
[WhiteElo "2610"]
[BlackElo "2309"]
[Result "0-1"]
[Round "02"]
[TimeControl "180+2"]
[Date "2023.03.07"]
[WhiteClock "0:01:56"]
[BlackClock "0:01:37"]

1. e4 {[%clk 0:03:00]}  e6 {[%clk 0:02:56]} 2. d4 {[%clk 0:02:57]}  d5 {[%clk 0:02:57]} 3. Nd2 {[%clk 0:02:58]}  c5 {[%clk 0:02:54]} 4. exd5 {[%clk 0:02:57]}  exd5 {[%clk 0:02:55]} 5. dxc5 {[%clk 0:02:58]}  Bxc5 {[%clk 0:02:54]} 6. Bb5+ {[%clk 0:02:58]}  Nc6 {[%clk 0:02:53]} 7. Ngf3 {[%clk 0:02:56]}  Bxf2+ {[%clk 0:02:48]} 8. Kxf2 {[%clk 0:02:39]}  Qb6+ {[%clk 0:02:48]} 9. Ke1 {[%clk 0:02:40]}  Qxb5 {[%clk 0:02:47]} 10. Qe2+ {[%clk 0:02:40]}  Qxe2+ {[%clk 0:02:47]} 11. Kxe2 {[%clk 0:02:41]}  Nf6 {[%clk 0:02:36]} 12. Nb3 {[%clk 0:02:40]}  Bg4 {[%clk 0:02:28]} 13. c3 {[%clk 0:02:40]}  O-O-O {[%clk 0:02:27]} 14. Rd1 {[%clk 0:02:37]}  Rhe8+ {[%clk 0:02:25]} 15. Kf1 {[%clk 0:02:36]}  h6 {[%clk 0:02:15]} 16. Bf4 {[%clk 0:02:25]}  g5 {[%clk 0:02:14]} 17. Bg3 {[%clk 0:02:24]}  Ne4 {[%clk 0:02:11]} 18. Be1 {[%clk 0:02:24]}  f5 {[%clk 0:02:05]} 19. Rac1 {[%clk 0:02:16]}  Ne5 {[%clk 0:01:59]} 20. Nbd4 {[%clk 0:02:11]}  Nc4 {[%clk 0:01:56]} 21. Bf2 {[%clk 0:02:03]}  Nxb2 {[%clk 0:01:49]} 22. c4 {[%clk 0:02:00]}  Nxd1 {[%clk 0:01:44]} 23. Rxd1 {[%clk 0:01:57]}  Nxf2 {[%clk 0:01:42]} 24. Kxf2 {[%clk 0:01:56]}  Bxf3 {[%clk 0:01:37]} 0-1


[Site "https://www.chess.com"]

[Event "Titled Tuesday Blitz March 07 Early 2023"]
[White "Bilan, Danila"]
[Black "Lorparizangeneh, Shahin"]
[WhiteFideId "24161918"]
[BlackFideId "12521604"]
[WhiteElo "2182"]
[BlackElo "2526"]
[Result "0-1"]
[Round "02"]
[TimeControl "180+2"]
[Date "2023.03.07"]
[WhiteClock "0:00:02"]
[BlackClock "0:00:39"]

1. d4 {[%clk 0:03:00]}  d5 {[%clk 0:02:57]} 2. Nf3 {[%clk 0:03:00]}  Nf6 {[%clk 0:02:57]} 3. c4 {[%clk 0:03:01]}  e6 {[%clk 0:02:56]} 4. Nc3 {[%clk 0:03:00]}  Bb4 {[%clk 0:02:56]} 5. Qb3 {[%clk 0:02:59]}  c5 {[%clk 0:02:54]} 6. e3 {[%clk 0:02:48]}  Nc6 {[%clk 0:02:52]} 7. Bd2 {[%clk 0:02:22]}  cxd4 {[%clk 0:02:48]} 8. Nxd4 {[%clk 0:02:14]}  Nxd4 {[%clk 0:02:46]} 9. exd4 {[%clk 0:02:13]}  Bxc3 {[%clk 0:02:47]} 10. bxc3 {[%clk 0:02:05]}  O-O {[%clk 0:02:46]} 11. Bd3 {[%clk 0:01:57]}  b6 {[%clk 0:02:45]} 12. cxd5 {[%clk 0:01:50]}  Qxd5 {[%clk 0:02:43]} 13. Qxd5 {[%clk 0:01:46]}  exd5 {[%clk 0:02:38]} 14. f3 {[%clk 0:01:34]}  a5 {[%clk 0:02:32]} 15. Rb1 {[%clk 0:01:31]}  Ba6 {[%clk 0:02:32]} 16. Bxa6 {[%clk 0:01:22]}  Rxa6 {[%clk 0:02:33]} 17. Ke2 {[%clk 0:01:10]}  Ne8 {[%clk 0:02:29]} 18. Bf4 {[%clk 0:01:07]}  Nf6 {[%clk 0:02:18]} 19. Kd3 {[%clk 0:01:02]}  Rd8 {[%clk 0:02:01]} 20. Bg5 {[%clk 0:00:51]}  Rd6 {[%clk 0:01:56]} 21. Rhe1 {[%clk 0:00:45]}  Kf8 {[%clk 0:01:54]} 22. Bxf6 {[%clk 0:00:43]}  gxf6 {[%clk 0:01:55]} 23. a4 {[%clk 0:00:36]}  Ra7 {[%clk 0:01:51]} 24. Rec1 {[%clk 0:00:19]}  Re7 {[%clk 0:01:47]} 25. Re1 {[%clk 0:00:18]}  Rc7 {[%clk 0:01:44]} 26. Rb3 {[%clk 0:00:17]}  Rc4 {[%clk 0:01:42]} 27. Ra3 {[%clk 0:00:17]}  Re6 {[%clk 0:01:38]} 28. Rb1 {[%clk 0:00:13]}  Rcc6 {[%clk 0:01:31]} 29. Rb5 {[%clk 0:00:13]}  Rcd6 {[%clk 0:01:32]} 30. Rab3 {[%clk 0:00:11]}  f5 {[%clk 0:01:32]} 31. Rb2 {[%clk 0:00:08]}  f4 {[%clk 0:01:30]} 32. c4 {[%clk 0:00:08]}  Re3+ {[%clk 0:01:30]} 33. Kc2 {[%clk 0:00:05]}  dxc4 {[%clk 0:01:30]} 34. Rxb6 {[%clk 0:00:05]}  Rxd4 {[%clk 0:01:30]} 35. Kb1 {[%clk 0:00:03]}  c3 {[%clk 0:01:28]} 36. Rc2 {[%clk 0:00:02]}  Rxa4 {[%clk 0:01:28]} 37. Rb8+ {[%clk 0:00:02]}  Kg7 {[%clk 0:01:27]} 38. Rc8 {[%clk 0:00:02]}  Re1+ {[%clk 0:01:25]} 39. Rc1 {[%clk 0:00:02]}  Ra1+ {[%clk 0:01:24]} 40. Kxa1 {[%clk 0:00:02]}  Rxc1+ {[%clk 0:01:25]} 41. Ka2 {[%clk 0:00:03]}  Rc2+ {[%clk 0:00:49]} 42. Kb3 {[%clk 0:00:03]}  Rxg2 {[%clk 0:00:49]} 43. Rxc3 {[%clk 0:00:03]}  Rxh2 {[%clk 0:00:50]} 44. Rc4 {[%clk 0:00:03]}  Rh6 {[%clk 0:00:40]} 45. Rxf4 {[%clk 0:00:02]}  Rf6 {[%clk 0:00:40]} 46. Rg4+ {[%clk 0:00:03]}  Kf8 {[%clk 0:00:41]} 47. f4 {[%clk 0:00:02]}  h5 {[%clk 0:00:39]} 48. Rg5 {[%clk 0:00:02]}  Rh6 {[%clk 0:00:39]} 0-1


[Site "https://www.chess.com"]

[Event "Titled Tuesday Blitz March 07 Early 2023"]
[White "Atakhan, Abtin"]
[Black "Garakov, Mikhael"]
[WhiteFideId "22502203"]
[BlackFideId "4169034"]
[WhiteElo "2008"]
[BlackElo "2347"]
[Result "1-0"]
[Round "02"]
[TimeControl "180+2"]
[Date "2023.03.07"]
[WhiteClock "0:00:06"]
[BlackClock "0:00:04"]

1. c4 {[%clk 0:03:00]}  Nf6 {[%clk 0:02:52]} 2. Nc3 {[%clk 0:03:01]}  c5 {[%clk 0:02:47]} 3. Nf3 {[%clk 0:03:01]}  b6 {[%clk 0:02:46]} 4. e4 {[%clk 0:02:56]}  d6 {[%clk 0:02:45]} 5. d4 {[%clk 0:02:51]}  cxd4 {[%clk 0:02:45]} 6. Nxd4 {[%clk 0:02:52]}  Bb7 {[%clk 0:02:45]} 7. f3 {[%clk 0:02:41]}  e6 {[%clk 0:02:43]} 8. Be2 {[%clk 0:02:32]}  Be7 {[%clk 0:02:43]} 9. O-O {[%clk 0:02:26]}  O-O {[%clk 0:02:41]} 10. Be3 {[%clk 0:02:27]}  a6 {[%clk 0:02:40]} 11. Qd2 {[%clk 0:02:27]}  Nbd7 {[%clk 0:02:36]} 12. Rfd1 {[%clk 0:02:22]}  Rc8 {[%clk 0:02:34]} 13. Rac1 {[%clk 0:02:15]}  Qc7 {[%clk 0:02:33]} 14. Kh1 {[%clk 0:02:12]}  Qb8 {[%clk 0:02:32]} 15. Bf1 {[%clk 0:02:08]}  Rfe8 {[%clk 0:01:52]} 16. a3 {[%clk 0:01:59]}  Bd8 {[%clk 0:01:43]} 17. Re1 {[%clk 0:01:56]}  Bc7 {[%clk 0:01:33]} 18. Bg1 {[%clk 0:01:56]}  d5 {[%clk 0:01:31]} 19. cxd5 {[%clk 0:01:54]}  Bf4 {[%clk 0:01:27]} 20. Be3 {[%clk 0:01:44]}  Bxh2 {[%clk 0:01:24]} 21. dxe6 {[%clk 0:01:44]}  fxe6 {[%clk 0:01:21]} 22. f4 {[%clk 0:01:20]}  Bg3 {[%clk 0:01:20]} 23. Red1 {[%clk 0:01:20]}  Nc5 {[%clk 0:00:58]} 24. e5 {[%clk 0:01:01]}  Nfe4 {[%clk 0:00:53]} 25. Qc2 {[%clk 0:00:53]}  Nxc3 {[%clk 0:00:27]} 26. bxc3 {[%clk 0:00:54]}  Be4 {[%clk 0:00:25]} 27. Qa2 {[%clk 0:00:51]}  Qb7 {[%clk 0:00:23]} 28. Ne2 {[%clk 0:00:42]}  Qe7 {[%clk 0:00:19]} 29. Nxg3 {[%clk 0:00:38]}  Qh4+ {[%clk 0:00:20]} 30. Kg1 {[%clk 0:00:39]}  Qxg3 {[%clk 0:00:20]} 31. Qf2 {[%clk 0:00:37]}  Qg6 {[%clk 0:00:20]} 32. Rd6 {[%clk 0:00:30]}  Bd5 {[%clk 0:00:19]} 33. f5 {[%clk 0:00:28]}  Qg4 {[%clk 0:00:17]} 34. Qf4 {[%clk 0:00:14]}  Qxf4 {[%clk 0:00:14]} 35. Bxf4 {[%clk 0:00:15]}  Ne4 {[%clk 0:00:12]} 36. Rxb6 {[%clk 0:00:14]}  exf5 {[%clk 0:00:10]} 37. c4 {[%clk 0:00:14]}  Be6 {[%clk 0:00:09]} 38. Rxa6 {[%clk 0:00:14]}  g5 {[%clk 0:00:08]} 39. Be3 {[%clk 0:00:13]}  Rcd8 {[%clk 0:00:07]} 40. c5 {[%clk 0:00:12]}  f4 {[%clk 0:00:07]} 41. Rxe6 {[%clk 0:00:11]}  Rxe6 {[%clk 0:00:06]} 42. Bc4 {[%clk 0:00:12]}  fxe3 {[%clk 0:00:06]} 43. Bxe6+ {[%clk 0:00:12]}  Kg7 {[%clk 0:00:07]} 44. c6 {[%clk 0:00:09]}  e2 {[%clk 0:00:06]} 45. Bg4 {[%clk 0:00:10]}  Nc3 {[%clk 0:00:04]} 46. c7 {[%clk 0:00:06]} 1-0


[Site "https://www.chess.com"]

[Event "Titled Tuesday Blitz March 07 Early 2023"]
[White "Leenhouts, Koen"]
[Black "Smirnov, Pavel"]
[WhiteFideId "1008439"]
[BlackFideId "4123425"]
[WhiteElo "2409"]
[BlackElo "2519"]
[Result "0-1"]
[Round "02"]
[TimeControl "180+2"]
[Date "2023.03.07"]
[WhiteClock "0:00:05"]
[BlackClock "0:01:21"]

1. d4 {[%clk 0:02:58]}  Nf6 {[%clk 0:02:59]} 2. c4 {[%clk 0:02:57]}  e6 {[%clk 0:02:59]} 3. Nc3 {[%clk 0:02:52]}  Bb4 {[%clk 0:02:58]} 4. Qc2 {[%clk 0:02:52]}  O-O {[%clk 0:02:58]} 5. Nf3 {[%clk 0:02:51]}  d5 {[%clk 0:02:58]} 6. cxd5 {[%clk 0:02:49]}  exd5 {[%clk 0:02:58]} 7. Bg5 {[%clk 0:02:50]}  h6 {[%clk 0:02:58]} 8. Bh4 {[%clk 0:02:46]}  c5 {[%clk 0:02:57]} 9. dxc5 {[%clk 0:02:43]}  Be6 {[%clk 0:02:57]} 10. e3 {[%clk 0:02:41]}  Nbd7 {[%clk 0:02:56]} 11. Be2 {[%clk 0:02:39]}  Rc8 {[%clk 0:02:55]} 12. O-O {[%clk 0:02:35]}  Rxc5 {[%clk 0:02:55]} 13. Nd4 {[%clk 0:02:13]}  Bxc3 {[%clk 0:02:50]} 14. bxc3 {[%clk 0:02:12]}  Qc8 {[%clk 0:02:51]} 15. Qa4 {[%clk 0:01:53]}  a6 {[%clk 0:02:48]} 16. Rfc1 {[%clk 0:01:27]}  Rxc3 {[%clk 0:02:46]} 17. Rxc3 {[%clk 0:01:23]}  Qxc3 {[%clk 0:02:47]} 18. Rb1 {[%clk 0:01:23]}  Nc5 {[%clk 0:02:41]} 19. Qd1 {[%clk 0:01:14]}  Nfe4 {[%clk 0:02:32]} 20. Be7 {[%clk 0:00:59]}  Re8 {[%clk 0:02:31]} 21. Bxc5 {[%clk 0:00:58]}  Nxc5 {[%clk 0:02:29]} 22. Rc1 {[%clk 0:00:51]}  Qa3 {[%clk 0:02:28]} 23. Bf3 {[%clk 0:00:45]}  Nd3 {[%clk 0:02:23]} 24. Rb1 {[%clk 0:00:39]}  Nc5 {[%clk 0:02:18]} 25. Rc1 {[%clk 0:00:35]}  b6 {[%clk 0:02:15]} 26. Rb1 {[%clk 0:00:29]}  b5 {[%clk 0:02:10]} 27. Rc1 {[%clk 0:00:27]}  Na4 {[%clk 0:02:02]} 28. Nxe6 {[%clk 0:00:23]}  fxe6 {[%clk 0:02:02]} 29. h4 {[%clk 0:00:21]}  Qxa2 {[%clk 0:01:58]} 30. Rc7 {[%clk 0:00:21]}  Qb2 {[%clk 0:01:57]} 31. Bh5 {[%clk 0:00:19]}  Rf8 {[%clk 0:01:57]} 32. Qg4 {[%clk 0:00:17]}  Qf6 {[%clk 0:01:58]} 33. f3 {[%clk 0:00:14]}  Qa1+ {[%clk 0:01:42]} 34. Kh2 {[%clk 0:00:14]}  Qe5+ {[%clk 0:01:41]} 35. Qg3 {[%clk 0:00:14]}  Qxg3+ {[%clk 0:01:36]} 36. Kxg3 {[%clk 0:00:15]}  b4 {[%clk 0:01:36]} 37. Rb7 {[%clk 0:00:13]}  a5 {[%clk 0:01:35]} 38. Bg4 {[%clk 0:00:14]}  Re8 {[%clk 0:01:32]} 39. Rb5 {[%clk 0:00:14]}  Nc3 {[%clk 0:01:31]} 40. Rb6 {[%clk 0:00:10]}  a4 {[%clk 0:01:26]} 41. Rxb4 {[%clk 0:00:07]}  a3 {[%clk 0:01:26]} 42. Rb3 {[%clk 0:00:04]}  a2 {[%clk 0:01:25]} 43. Ra3 {[%clk 0:00:04]}  Kf7 {[%clk 0:01:23]} 44. Ra7+ {[%clk 0:00:04]}  Kf6 {[%clk 0:01:22]} 45. Ra8 {[%clk 0:00:05]}  Rxa8 {[%clk 0:01:21]} 0-1


[Site "https://www.chess.com"]